bitfinex-derivatives/quotes_BTCF0:USTF0_20241103
["timestamp","ask_amount","ask_price","bid_price","bid_amount"]
[1730655946426,0.537003,68401.0,68400.0,0.1]
[1730655950129,0.176203,68401.0,68400.0,0.1]
[1730655950431,0.897803,68401.0,68400.0,0.1]
[1730655952833,0.897723,68401.0,68400.0,0.1]
[1730655955232,0.896723,68401.0,68400.0,0.1]
[1730655955436,0.897723,68401.0,68400.0,0.1]
[1730655956728,0.897763,68401.0,68400.0,0.1]
[1730655958521,0.536963,68401.0,68400.0,0.1]
[1730655961122,0.535963,68401.0,68400.0,0.1]
[1730655961327,0.536963,68401.0,68400.0,0.1]
[1730655965130,0.435923,68401.0,68400.0,0.1]
[1730655965334,0.387263,68401.0,68400.0,0.1]
[1730655965525,0.07312,68404.0,68403.0,0.073121]
[1730655965725,0.07312,68404.0,68403.0,0.23447989]
[1730655966129,0.07312,68404.0,68403.0,0.16171299]
[1730655966431,0.07312,68404.0,68403.0,0.23446511]
[1730655967030,0.07812,68404.0,68403.0,0.23446511]
[1730655967227,0.07812,68404.0,68403.0,0.23438883]
[1730655967431,0.07812,68404.0,68403.0,0.14587312]
[1730655967930,0.08312,68404.0,68403.0,0.073121]
[1730655968739,0.08312,68404.0,68403.0,0.136621]
[1730655969636,0.08312,68404.0,68403.0,0.0635]
[1730655973929,0.08312,68404.0,68403.0,0.0317]
[1730655974239,0.07912,68404.0,68403.0,0.0317]
[1730655974746,0.07512,68404.0,68403.0,0.0317]
[1730655975935,0.07512,68404.0,68400.0,0.17275212]
[1730655976132,0.073123,68401.0,68400.0,0.17275212]
[1730655976437,0.073123,68401.0,68400.0,0.26161419]
[1730655976932,0.073123,68401.0,68400.0,0.1]
[1730655977440,0.074123,68401.0,68400.0,0.102]
[1730655977638,0.075123,68401.0,68400.0,0.102]
[1730655978528,0.513723,68401.0,68400.0,0.102]
[1730655978730,0.7406,68401.0,68387.0,0.07275212]
[1730655978930,0.073137,68388.0,68387.0,0.07275212]
[1730655979139,0.073139,68386.0,68383.0,0.07275212]
[1730655979342,0.17149388,68386.0,68380.0,0.07275212]
[1730655979641,0.17149388,68386.0,68378.0,0.13795212]
[1730655980041,0.17149388,68386.0,68379.0,0.07275212]
[1730655980430,0.17149388,68386.0,68380.0,0.07275212]
[1730655980633,0.17249388,68386.0,68380.0,0.07275212]
[1730655981232,0.17349388,68386.0,68379.0,0.07275212]
[1730655982350,0.17349388,68386.0,68383.0,0.05815334]
[1730655983143,0.17349388,68386.0,68384.0,0.05815334]
[1730655984256,0.17349388,68386.0,68383.0,0.05815334]
[1730655985154,0.17349388,68386.0,68381.0,0.073144]
[1730655985155,0.176099,68386.0,68385.0,0.06034682]
[1730655985551,0.075139,68386.0,68385.0,0.13348782]
[1730655985750,0.176099,68386.0,68385.0,0.07533448]
[1730655986147,0.075139,68386.0,68385.0,0.07533448]
[1730655986960,0.075139,68386.0,68385.0,0.16463149]
[1730655987549,0.075139,68386.0,68385.0,0.07533448]
[1730655988564,0.075139,68386.0,68385.0,0.11968164]
[1730655988758,0.002,68386.0,68385.0,0.55836164]
[1730655988956,0.433922,68403.0,68385.0,1.24437552]
[1730655989160,0.174089,68396.0,68395.0,0.07313]
[1730655990148,0.175089,68396.0,68395.0,0.07313]
[1730655990354,0.074129,68396.0,68395.0,0.07313]
[1730655990950,0.075129,68396.0,68395.0,0.07313]
[1730655996570,0.073132,68393.0,68392.0,0.07264094]
[1730655997566,0.174092,68393.0,68392.0,0.07264094]
[1730655997775,0.073133,68392.0,68391.0,0.07264094]
[1730655998158,0.073133,68392.0,68391.0,0.16171521]
[1730655998565,0.17148788,68392.0,68391.0,0.16171521]
[1730655999668,0.17248788,68392.0,68391.0,0.16171521]
[1730656000173,0.17348788,68392.0,68391.0,0.16173013]
[1730656000368,0.073136,68389.0,68388.0,0.07264094]
[1730656000572,0.073136,68389.0,68385.0,0.07483442]
[1730656000791,0.17149388,68386.0,68385.0,0.00219348]
[1730656001659,0.174099,68386.0,68385.0,0.00219348]
[1730656001976,0.073139,68386.0,68385.0,0.16473627]
[1730656003368,0.074139,68386.0,68385.0,0.16473627]
[1730656003672,0.075139,68386.0,68385.0,0.16473627]
[1730656003977,0.002,68386.0,68385.0,0.29539051]
[1730656004363,0.002,68386.0,68385.0,0.20822138]
[1730656005060,0.002,68386.0,68385.0,0.64690138]
[1730656005271,0.002,68386.0,68385.0,0.16473627]
[1730656005474,0.075139,68386.0,68385.0,0.16473627]
[1730656005966,0.17349388,68386.0,68385.0,0.09159527]
[1730656009578,0.27441388,68386.0,68385.0,0.09159527]
[1730656012379,0.075139,68386.0,68385.0,0.16473627]
[1730656013377,0.075139,68386.0,68385.0,0.2713497]
[1730656014177,0.075139,68386.0,68385.0,0.2714284]
[1730656015374,0.075139,68386.0,68385.0,0.31595814]
[1730656018580,0.075139,68386.0,68385.0,0.3158671]
[1730656019981,0.002,68386.0,68385.0,0.3158671]
[1730656020283,0.002,68386.0,68385.0,0.3793671]
[1730656026193,0.075139,68386.0,68385.0,0.3793671]
[1730656027090,0.075139,68386.0,68385.0,0.19805726]
[1730656027291,0.075139,68386.0,68385.0,0.09161241]
[1730656027798,0.136639,68386.0,68385.0,0.09161241]
[1730656028387,0.237559,68386.0,68385.0,0.09161241]
[1730656029393,0.33593702,68386.0,68385.0,0.09161241]
[1730656030695,0.69673702,68386.0,68385.0,0.09161241]
[1730656030989,0.69673702,68386.0,68385.0,0.1645123]
[1730656031197,0.69673702,68386.0,68385.0,0.09161241]
[1730656032297,0.69673702,68386.0,68385.0,0.16450385]
[1730656032595,0.69673702,68386.0,68385.0,0.07508492]
[1730656032988,0.69673702,68386.0,68385.0,0.00219348]
[1730656036993,0.69673702,68386.0,68385.0,0.06048135]
[1730656037999,0.69673702,68386.0,68379.0,0.07289144]
[1730656038306,0.073146,68380.0,68379.0,0.07289144]
[1730656039301,0.09837802,68381.0,68378.0,0.07289144]
[1730656039501,0.073147,68379.0,68378.0,0.07289144]
[1730656039692,0.073147,68379.0,68378.0,0.16261125]
[1730656040286,0.073147,68379.0,68378.0,0.07289144]
[1730656040489,0.433947,68379.0,68378.0,0.08971946]
[1730656040689,0.3608,68379.0,68376.0,0.07283888]
[1730656040885,0.09837802,68377.0,68373.0,0.07283888]
[1730656041100,0.09837802,68377.0,68370.0,0.3608]
[1730656041101,0.073153,68373.0,68372.0,0.07283888]
[1730656041289,0.073153,68373.0,68370.0,0.3608]
[1730656041290,0.073154,68372.0,68371.0,0.07283888]
[1730656041494,0.073154,68372.0,68371.0,0.02293888]
[1730656041696,0.073156,68371.0,68370.0,0.0582853]
[1730656041999,0.4236,68373.0,68367.0,0.0582853]
[1730656042000,0.073158,68369.0,68367.0,0.0582853]
[1730656042204,0.17153702,68368.0,68367.0,0.0582853]
[1730656042695,0.073161,68366.0,68365.0,0.0582853]
[1730656042889,0.534841,68366.0,68365.0,0.0582853]
[1730656043501,0.46168,68366.0,68364.0,0.0582853]
[1730656043802,0.073162,68365.0,68364.0,0.0582853]
[1730656044593,0.174042,68365.0,68364.0,0.0582853]
[1730656045099,0.175042,68365.0,68364.0,0.0582853]
[1730656045600,0.073163,68364.0,68363.0,0.10253996]
[1730656045821,0.073163,68364.0,68363.0,0.138664]
[1730656046010,0.002,68365.0,68363.0,0.22829121]
[1730656046193,0.073163,68364.0,68363.0,0.138664]
[1730656046394,0.073163,68364.0,68363.0,0.22815169]
[1730656046801,0.074163,68364.0,68363.0,0.22815169]
[1730656047908,0.075163,68364.0,68363.0,0.22815169]
[1730656048292,0.002,68364.0,68363.0,0.22815169]
[1730656049700,0.075163,68364.0,68363.0,0.22815169]
[1730656050108,0.17354102,68364.0,68363.0,0.08955227]
[1730656050407,0.17354102,68364.0,68359.0,0.44826769]
[1730656050408,0.073167,68360.0,68359.0,0.3608]
[1730656051504,0.073167,68360.0,68359.0,0.433968]
[1730656051706,0.074167,68360.0,68359.0,0.433968]
[1730656051896,0.074167,68360.0,68359.0,0.3608]
[1730656052301,0.073167,68360.0,68359.0,0.3608]
[1730656052505,0.074167,68360.0,68359.0,0.3608]
[1730656052810,0.074167,68360.0,68359.0,0.45062282]
[1730656053006,0.075167,68360.0,68359.0,0.3608]
[1730656053325,0.075167,68360.0,68359.0,0.45063886]
[1730656053809,0.075167,68360.0,68359.0,0.3608]
[1730656054700,0.075167,68360.0,68359.0,0.45069553]
[1730656058020,0.075167,68360.0,68359.0,0.45079078]
[1730656058311,0.075167,68360.0,68359.0,0.52395878]
[1730656060524,0.002,68360.0,68359.0,0.52395878]
[1730656060833,0.002,68360.0,68359.0,0.61142647]
[1730656060999,0.002,68360.0,68359.0,1.02737379]
[1730656061197,0.002,68360.0,68359.0,0.58853379]
[1730656061407,0.002,68360.0,68359.0,1.02737379]
[1730656061616,0.002,68360.0,68359.0,0.69548652]
[1730656062109,0.002,68360.0,68359.0,1.06975151]
[1730656062503,0.073163,68364.0,68363.0,0.073164]
[1730656062703,0.073163,68364.0,68363.0,0.25056733]
[1730656063314,0.073163,68364.0,68363.0,0.61136733]
[1730656063500,0.073163,68364.0,68363.0,0.52395478]
[1730656063707,0.075163,68364.0,68363.0,0.52395478]
[1730656064813,0.075163,68364.0,68363.0,0.2506389]
[1730656065021,0.075163,68364.0,68363.0,0.16315478]
[1730656065321,0.075163,68364.0,68363.0,0.08999078]
[1730656066118,0.176003,68364.0,68363.0,0.08999078]
[1730656067217,0.176003,68364.0,68363.0,0.09008045]
[1730656067612,0.075163,68364.0,68363.0,0.09008045]
[1730656068014,0.075163,68364.0,68363.0,0.17756457]
[1730656068328,0.075163,68364.0,68363.0,0.25078775]
[1730656068515,0.075163,68364.0,68363.0,0.16324445]
[1730656069512,0.075163,68364.0,68363.0,0.25080928]
[1730656070623,0.075163,68364.0,68363.0,0.16324445]
[1730656071717,0.075163,68364.0,68363.0,0.2705981]
[1730656080525,0.002,68364.0,68363.0,0.33517311]
[1730656080715,0.002,68364.0,68363.0,0.33524184]
[1730656081518,0.002,68364.0,68363.0,0.27066683]
[1730656082220,0.002,68364.0,68363.0,0.073164]
[1730656082520,0.04478822,68364.0,68363.0,0.073164]
[1730656084020,0.04481225,68364.0,68363.0,0.073164]
[1730656084415,0.04481225,68364.0,68363.0,0.13773901]
[1730656085123,0.04481225,68364.0,68363.0,0.57657901]
[1730656087831,0.002,68364.0,68363.0,0.57657901]
[1730656088122,0.002,68364.0,68363.0,0.93737901]
[1730656088632,0.00219441,68374.0,68363.0,1.00195402]
[1730656088824,0.00219441,68374.0,68373.0,0.073153]
[1730656089024,0.04536915,68374.0,68373.0,0.073153]
[1730656089231,0.00219441,68374.0,68373.0,0.2504331]
[1730656089431,0.13992142,68374.0,68373.0,0.08957032]
[1730656089929,0.13992142,68374.0,68373.0,0.17720265]
[1730656091332,0.14692142,68374.0,68373.0,0.17720265]
[1730656091731,0.15392142,68374.0,68373.0,0.17720265]
[1730656092233,0.15392142,68374.0,68373.0,0.08957032]
[1730656092722,0.073153,68373.0,68370.0,0.07301664]
[1730656092920,0.12915002,68371.0,68369.0,0.07301664]
[1730656093119,0.16185002,68370.0,68367.0,0.07301664]
[1730656093333,0.56310902,68368.0,68366.0,0.02311664]
[1730656093522,0.073165,68362.0,68361.0,0.08764449]
[1730656093831,0.13774001,68362.0,68361.0,0.17765632]
[1730656094225,0.13774001,68362.0,68361.0,0.09001183]
[1730656094625,0.13774001,68362.0,68361.0,0.17765632]
[1730656095032,0.13874001,68362.0,68361.0,0.18065632]
[1730656095631,0.13974001,68362.0,68361.0,0.18065632]
[1730656095832,0.13974001,68362.0,68361.0,0.09301183]
[1730656097239,0.23285068,68362.0,68361.0,0.003]
[1730656098743,0.27614921,68362.0,68361.0,0.003]
[1730656099348,0.66496445,68362.0,68361.0,0.003]
[1730656099737,0.71485108,68362.0,68361.0,0.003]
[1730656102332,0.71458305,68362.0,68361.0,0.003]
[1730656103152,0.11806296,68362.0,68361.0,0.06757501]
[1730656103642,0.28305845,68362.0,68361.0,0.003]
[1730656104348,0.24050001,68362.0,68361.0,0.09334339]
[1730656104549,0.24050001,68362.0,68361.0,0.13717959]
[1730656106439,0.13974001,68362.0,68361.0,0.13717959]
[1730656106747,0.13974001,68362.0,68361.0,0.13722571]
[1730656106946,0.24050001,68362.0,68361.0,0.13722571]
[1730656107152,0.13974001,68362.0,68361.0,0.13722571]
[1730656107445,0.24050001,68362.0,68361.0,0.13722571]
[1730656111050,0.06657501,68362.0,68361.0,0.13722571]
[1730656111246,0.06657501,68362.0,68361.0,0.33954173]
[1730656111247,0.002,68362.0,68361.0,0.33954173]
[1730656111552,0.10076,68369.0,68361.0,0.56210724]
[1730656111756,0.00219441,68374.0,68369.0,0.073157]
[1730656111757,0.10076,68372.0,68369.0,0.073157]
[1730656112063,0.10076,68372.0,68370.0,0.15349603]
[1730656112348,0.10076,68372.0,68370.0,0.0636]
[1730656112949,0.00219441,68374.0,68370.0,0.0636]
[1730656113154,0.04284966,68373.0,68372.0,0.073154]
[1730656113449,0.00219441,68374.0,68373.0,0.073153]
[1730656114337,0.00319441,68374.0,68373.0,0.073153]
[1730656114541,0.00419441,68374.0,68373.0,0.105553]
[1730656114745,0.3608,68395.0,68373.0,0.0324]
[1730656114947,0.04314152,68387.0,68381.0,0.3608]
[1730656115144,0.04314152,68386.0,68381.0,0.3608]
[1730656115354,0.433938,68388.0,68386.0,0.073139]
[1730656115553,0.435618,68388.0,68386.0,0.073139]
[1730656115745,0.433938,68388.0,68386.0,0.073139]
[1730656116450,0.447938,68388.0,68386.0,0.073139]
[1730656116651,0.073138,68387.0,68382.0,0.073143]
[1730656117153,0.073138,68387.0,68383.0,0.073142]
[1730656117754,0.073138,68387.0,68384.0,0.073141]
[1730656118053,0.073138,68387.0,68385.0,0.0312]
[1730656118253,0.073138,68387.0,68385.0,0.0632]
[1730656118449,0.085138,68387.0,68385.0,0.0632]
[1730656118647,0.012,68387.0,68386.0,0.073139]
[1730656118839,0.025,68387.0,68386.0,0.103439]
[1730656119243,0.025,68387.0,68386.0,0.14719207]
[1730656119953,0.073126,68399.0,68394.0,0.07313]
[1730656120340,0.073126,68399.0,68396.0,0.3608]
[1730656120872,0.45916751,68397.0,68386.0,0.10206319]
[1730656121048,0.073159,68368.0,68362.0,0.0332]
[1730656121350,0.073161,68366.0,68357.0,0.0314]
[1730656121653,0.073173,68355.0,68352.0,0.3608]
[1730656122154,0.073173,68355.0,68352.0,0.40353832]
[1730656123143,0.074173,68355.0,68352.0,0.40353832]
[1730656124656,0.075173,68355.0,68352.0,0.41753832]
[1730656126050,0.534679,68368.0,68352.0,0.41753832]
[1730656126051,0.07317,68358.0,68352.0,0.41753832]
[1730656126954,0.073171,68357.0,68353.0,0.073175]
[1730656127352,0.073171,68357.0,68356.0,0.07277587]
[1730656128345,0.073171,68357.0,68355.0,0.07277587]
[1730656128643,0.073171,68357.0,68356.0,0.07277587]
[1730656128846,0.074171,68357.0,68356.0,0.08577587]
[1730656129358,0.075171,68357.0,68356.0,0.11542484]
[1730656129547,0.074171,68357.0,68356.0,0.10242484]
[1730656129948,0.075171,68357.0,68356.0,0.10242484]
[1730656131344,0.075171,68357.0,68356.0,0.11542484]
[1730656133546,0.075171,68357.0,68356.0,0.027]
[1730656133753,0.075171,68357.0,68356.0,0.11569215]
[1730656134355,0.075171,68357.0,68356.0,0.027]
[1730656139059,0.002,68357.0,68356.0,0.027]
[1730656141959,0.002,68357.0,68356.0,0.100172]
[1730656142466,0.002,68357.0,68356.0,0.18875107]
[1730656143764,0.073168,68360.0,68356.0,0.27626385]
[1730656143954,0.073168,68360.0,68357.0,0.08857907]
[1730656144158,0.073168,68360.0,68358.0,0.08857907]
[1730656144358,0.073168,68360.0,68359.0,0.08857907]
[1730656144863,0.073157,68370.0,68361.0,0.073166]
[1730656145061,0.10108,68369.0,68364.0,0.07274433]
[1730656145255,0.073161,68366.0,68365.0,0.0321]
[1730656145459,0.17152851,68366.0,68365.0,0.10484433]
[1730656146054,0.17152851,68366.0,68365.0,0.0321]
[1730656146262,0.17152851,68366.0,68365.0,0.10484433]
[1730656146461,0.17152851,68366.0,68365.0,0.19327154]
[1730656147371,0.17152851,68366.0,68365.0,0.19334262]
[1730656147565,0.17152851,68366.0,68365.0,0.12059829]
[1730656148370,0.17152851,68366.0,68365.0,0.20642296]
[1730656148371,0.17252851,68366.0,68365.0,0.20642296]
[1730656148572,0.17252851,68366.0,68365.0,0.10149829]
[1730656148759,0.17352851,68366.0,68365.0,0.023]
[1730656149074,0.17352851,68366.0,68365.0,0.01]
[1730656149075,0.61232851,68366.0,68365.0,0.01]
[1730656149272,0.073172,68356.0,68355.0,0.07285434]
[1730656149478,0.073172,68356.0,68348.0,0.0327]
[1730656149479,0.073176,68352.0,68348.0,0.0327]
[1730656149673,0.17154351,68352.0,68348.0,0.0327]
[1730656149859,0.17154351,68352.0,68351.0,0.4042167]
[1730656150266,0.17154351,68352.0,68351.0,0.3608]
[1730656151077,0.17354351,68352.0,68351.0,0.3828]
[1730656151470,0.17354351,68352.0,68351.0,0.022]
[1730656151872,0.71083102,68352.0,68351.0,0.022]
[1730656152071,1.07163102,68352.0,68351.0,0.022]
[1730656152673,0.97326351,68352.0,68351.0,0.022]
[1730656152968,1.07163102,68352.0,68351.0,0.022]
[1730656153363,1.07063102,68352.0,68351.0,0.008]
[1730656153574,1.07163102,68352.0,68351.0,0.008]
[1730656153772,1.07163102,68352.0,68351.0,0.006]
[1730656153972,1.07163102,68352.0,68339.0,0.00219493]
[1730656153973,0.073189,68340.0,68339.0,0.00219493]
[1730656154175,0.63307651,68340.0,68339.0,0.00219493]
[1730656154366,1.07207651,68340.0,68339.0,0.00219493]
[1730656155166,1.07307651,68340.0,68339.0,0.00219493]
[1730656155366,0.63507651,68340.0,68339.0,0.00919493]
[1730656157166,0.53435651,68340.0,68339.0,0.00919493]
[1730656157375,0.63507651,68340.0,68339.0,0.00919493]
[1730656161683,0.53435651,68340.0,68339.0,0.00919493]
[1730656161876,0.536709,68340.0,68339.0,0.00919493]
[1730656162072,0.63507651,68340.0,68339.0,0.00919493]
[1730656162974,1.07407651,68340.0,68339.0,0.007]
[1730656164785,1.11854997,68340.0,68339.0,0.007]
[1730656171581,0.073204,68326.0,68325.0,0.00219536]
[1730656171784,0.53237151,68326.0,68325.0,0.00219536]
[1730656172890,0.53337151,68326.0,68325.0,0.00319536]
[1730656173886,0.53437151,68326.0,68325.0,0.00319536]
[1730656175093,0.53437151,68326.0,68318.0,0.07285434]
[1730656175094,0.46116751,68326.0,68318.0,0.07285434]
[1730656175403,0.17157851,68319.0,68318.0,0.07285434]
[1730656176090,0.3608,68320.0,68318.0,0.07285434]
[1730656176391,0.073211,68319.0,68318.0,0.07385434]
[1730656177095,0.03762118,68319.0,68318.0,0.07385434]
[1730656177482,0.10076,68323.0,68318.0,0.07385434]
[1730656177793,0.09836751,68325.0,68318.0,0.001]
[1730656177995,0.07321,68320.0,68318.0,0.001]
[1730656178386,0.10076,68325.0,68318.0,0.001]
[1730656178695,0.073207,68324.0,68322.0,0.073207]
[1730656179083,0.001,68323.0,68322.0,0.073207]
[1730656179388,0.074205,68325.0,68319.0,0.3608]
[1730656179595,0.073208,68322.0,68319.0,0.434011]
[1730656179892,0.073208,68322.0,68320.0,0.07321]
[1730656180388,0.073208,68322.0,68321.0,0.0332]
[1730656181191,0.3608,68362.0,68321.0,0.80316845]
[1730656181394,0.00128,68353.0,68352.0,0.17154351]
[1730656181600,0.07316,68367.0,68359.0,0.073168]
[1730656181895,0.09836751,68370.0,68352.0,0.09836751]
[1730656181896,0.073161,68366.0,68352.0,0.09836751]
[1730656182088,0.073161,68366.0,68361.0,0.073166]
[1730656182284,0.07316,68367.0,68352.0,0.09836751]
[1730656182489,0.10076,68368.0,68364.0,0.073163]
[1730656182996,0.014,68367.0,68366.0,0.05831903]
[1730656183396,0.014,68367.0,68364.0,0.13148203]
[1730656183593,0.014,68367.0,68365.0,0.073162]
[1730656184096,0.014,68367.0,68366.0,0.073161]
[1730656184797,0.011,68367.0,68366.0,0.074161]
[1730656185100,0.023,68367.0,68366.0,0.074161]
[1730656185502,0.023,68367.0,68366.0,0.075161]
[1730656187001,0.16985874,68367.0,68366.0,0.03274062]
[1730656187194,0.21081315,68367.0,68366.0,0.03274062]
[1730656187397,0.16985874,68367.0,68366.0,0.03274062]
[1730656189092,0.16985874,68367.0,68366.0,0.002]
[1730656189093,0.06516274,68367.0,68366.0,0.002]
[1730656189706,0.24185124,68367.0,68366.0,0.00088268]
[1730656190205,0.38720301,68367.0,68366.0,0.00088268]
[1730656190413,0.24188241,68367.0,68366.0,0.00088268]
[1730656193008,0.24151348,68367.0,68366.0,0.00088268]
[1730656193208,0.16835348,68367.0,68366.0,0.07404368]
[1730656193511,0.11318174,68367.0,68366.0,0.07404368]
[1730656195111,0.023,68367.0,68366.0,0.07404368]
[1730656196804,0.09616,68367.0,68366.0,0.00088268]
[1730656197007,0.4388,68366.0,68336.0,0.05831903]
[1730656197201,0.4388,68366.0,68329.0,0.0316]
[1730656197202,0.07319,68339.0,68333.0,0.03409909]
[1730656198216,0.07319,68339.0,68338.0,0.00619474]
[1730656199003,0.3608,68341.0,68338.0,0.00619474]
[1730656199511,0.433989,68341.0,68338.0,0.00619474]
[1730656199704,0.433989,68341.0,68338.0,0.01019474]
[1730656200107,0.073189,68340.0,68338.0,0.00619474]
[1730656200314,0.073189,68340.0,68338.0,0.01819474]
[1730656200515,0.001,68339.0,68338.0,0.02819474]
[1730656200812,0.07419,68339.0,68338.0,0.02819474]
[1730656201216,0.07319,68339.0,68338.0,0.00219474]
[1730656201415,0.07319,68339.0,68338.0,0.02819474]
[1730656202108,0.07319,68339.0,68338.0,0.01419474]
[1730656202305,0.07419,68339.0,68338.0,0.02819474]
[1730656202811,0.07419,68339.0,68338.0,0.01619474]
[1730656203015,0.07519,68339.0,68338.0,0.02919474]
[1730656203200,0.073206,68324.0,68323.0,0.05831903]
[1730656203402,0.073206,68324.0,68313.0,0.073217]
[1730656203403,0.073207,68323.0,68322.0,0.05831903]
[1730656203602,0.073207,68323.0,68321.0,0.05831903]
[1730656203904,0.073207,68323.0,68315.0,0.24548675]
[1730656203905,0.073207,68323.0,68322.0,0.05831903]
[1730656204616,0.3608,68327.0,68322.0,0.05831903]
[1730656204617,0.073205,68325.0,68322.0,0.05831903]
[1730656204814,0.073205,68325.0,68323.0,0.05831903]
[1730656205316,0.001,68324.0,68323.0,0.07231903]
[1730656205501,0.001,68324.0,68323.0,0.014]
[1730656206605,0.001,68324.0,68323.0,0.04846238]
[1730656206806,0.073205,68325.0,68323.0,0.03446238]
[1730656207008,0.001,68323.0,68322.0,0.002]
[1730656207625,0.3608,68327.0,68321.0,0.073208]
[1730656207920,0.002,68324.0,68323.0,0.002]
[1730656208333,0.001,68323.0,68322.0,0.075207]
[1730656208615,0.001,68324.0,68323.0,0.073207]
[1730656208821,0.001,68324.0,68323.0,0.60263981]
[1730656209630,0.001,68324.0,68323.0,0.6026525]
[1730656211316,0.001,68324.0,68323.0,0.6046525]
[1730656211902,0.001,68324.0,68323.0,0.5314455]
[1730656212113,0.001,68324.0,68323.0,0.5344455]
[1730656212114,0.002,68324.0,68323.0,0.5344455]
[1730656213618,0.06736068,68362.0,68351.0,0.073177]
[1730656213817,0.3608,68372.0,68358.0,0.09836751]
[1730656214025,0.073157,68370.0,68363.0,0.09836751]
[1730656214319,0.3608,68372.0,68363.0,0.09836751]
[1730656214506,0.433955,68372.0,68363.0,0.09836751]
[1730656214817,0.433955,68372.0,68363.0,0.17153151]
[1730656215020,0.073156,68371.0,68363.0,0.17153151]
[1730656215218,0.073159,68368.0,68363.0,0.09836751]
[1730656215421,0.447955,68372.0,68363.0,0.09836751]
[1730656215608,0.073156,68371.0,68363.0,0.09836751]
[1730656217032,0.073156,68371.0,68363.0,0.17153051]
[1730656217922,0.014,68368.0,68363.0,0.17153051]
[1730656218129,0.08716,68368.0,68360.0,0.52868612]
[1730656218435,0.07316,68367.0,68360.0,0.52784612]
[1730656219819,0.07316,68367.0,68360.0,0.4696404]
[1730656220012,0.028,68368.0,68360.0,0.4696404]
[1730656220013,0.073161,68366.0,68360.0,0.4696404]
[1730656221020,0.073161,68366.0,68360.0,0.3964734]
[1730656221233,0.014,68367.0,68362.0,0.073165]
[1730656221422,0.014,68366.0,68360.0,0.3972334]
[1730656221619,0.014,68366.0,68360.0,0.3608]
[1730656221929,0.014,68366.0,68337.0,0.00219441]
[1730656221930,0.073182,68347.0,68337.0,0.00219441]
[1730656222122,0.53235851,68338.0,68337.0,0.00219441]
[1730656222723,0.433991,68338.0,68337.0,0.00219441]
[1730656224229,0.433991,68338.0,68337.0,0.00619441]
[1730656224230,0.434991,68338.0,68337.0,0.00619441]
[1730656224427,0.53335851,68338.0,68337.0,0.00619441]
[1730656224633,0.53435851,68338.0,68337.0,0.00919441]
[1730656225128,0.53235851,68338.0,68337.0,0.00219441]
[1730656225335,0.53435851,68338.0,68337.0,0.00919441]
[1730656225940,0.536751,68338.0,68337.0,0.00919441]
[1730656226425,0.63511851,68338.0,68337.0,0.00919441]
[1730656227233,1.07411851,68338.0,68337.0,0.00919441]
[1730656231525,0.63511851,68338.0,68337.0,0.00919441]
[1730656232326,0.536751,68338.0,68337.0,0.00919441]
[1730656232530,0.435991,68338.0,68337.0,0.00919441]
[1730656232838,0.536751,68338.0,68337.0,0.00919441]
[1730656233229,0.63511851,68338.0,68337.0,0.00919441]
[1730656235331,0.53435851,68338.0,68337.0,0.00919441]
[1730656235537,0.63511851,68338.0,68337.0,0.00919441]
[1730656236330,0.53435851,68338.0,68337.0,0.00919441]
[1730656236533,0.435991,68338.0,68337.0,0.00919441]
[1730656238336,0.36299532,68361.0,68337.0,0.84656192]
[1730656238642,0.07317,68358.0,68354.0,0.073173]
[1730656238932,0.073171,68357.0,68353.0,0.09836751]
[1730656239335,0.073171,68357.0,68356.0,0.3608]
[1730656240535,0.080171,68357.0,68356.0,0.3608]
[1730656240946,0.007,68357.0,68356.0,0.79968]
[1730656241439,0.007,68357.0,68356.0,0.902952]
[1730656242334,0.015,68357.0,68356.0,0.902952]
[1730656242639,0.08817,68357.0,68356.0,0.3608]
[1730656242841,0.073173,68355.0,68349.0,0.105079]
[1730656243139,0.002,68357.0,68349.0,0.0319]
[1730656243443,0.004,68357.0,68353.0,0.073174]
[1730656243940,0.001,68355.0,68353.0,0.073174]
[1730656244142,0.002,68355.0,68353.0,0.073174]
[1730656245643,0.07317,68358.0,68353.0,0.073174]
[1730656245644,0.07317,68358.0,68353.0,0.074174]
[1730656245845,0.07317,68358.0,68353.0,0.075174]
[1730656246045,0.07317,68358.0,68353.0,0.074174]
[1730656246243,0.001,68355.0,68353.0,0.078174]
[1730656246443,0.536774,68354.0,68339.0,0.00076]
[1730656246642,0.433987,68342.0,68329.0,0.06654997]
[1730656248152,0.433987,68342.0,68329.0,0.0325]
[1730656249146,0.434987,68342.0,68329.0,0.0325]
[1730656249347,0.435987,68342.0,68341.0,0.07666707]
[1730656249952,0.435987,68342.0,68341.0,0.004]
[1730656250347,0.075187,68342.0,68341.0,0.004]
[1730656254955,0.002,68342.0,68341.0,0.004]
[1730656255153,0.002,68342.0,68341.0,0.44296]
[1730656261254,0.002,68342.0,68341.0,0.48669956]
[1730656261961,0.002,68342.0,68341.0,0.44296]
[1730656262161,0.002,68342.0,68341.0,0.516148]
[1730656263060,0.002,68342.0,68341.0,0.71157477]
[1730656264460,0.002,68342.0,68341.0,0.71183823]
[1730656264866,0.075187,68342.0,68341.0,0.19969023]
[1730656265362,0.075187,68342.0,68341.0,0.0932763]
[1730656273876,0.075187,68342.0,68341.0,0.09371588]
[1730656274370,0.075187,68342.0,68341.0,0.004]
[1730656274566,0.075187,68342.0,68341.0,0.09373485]
[1730656278063,0.075187,68342.0,68341.0,0.04785695]
[1730656278264,0.075187,68342.0,68341.0,0.004]
[1730656281768,0.075187,68342.0,68341.0,0.04058126]
[1730656285180,0.075187,68342.0,68341.0,0.13028247]
[1730656285374,0.002,68342.0,68341.0,0.13028247]
[1730656285572,0.075187,68342.0,68341.0,0.13028247]
[1730656285882,0.075187,68342.0,68341.0,0.23703494]
[1730656287473,0.075187,68342.0,68341.0,0.07358126]
[1730656287784,0.075187,68342.0,68341.0,0.26984848]
[1730656290286,0.075187,68342.0,68341.0,0.36827799]
[1730656290287,0.002,68342.0,68341.0,0.36827799]
[1730656290476,0.002,68342.0,68341.0,0.44146599]
[1730656290988,0.002,68342.0,68341.0,0.54352497]